[Event "ESP-ch U1700 2024"]
[Site "Albacete"]
[Date "2024.08.29"]
[Round "4.8"]
[White "El Ammari Rovira, Yassin Jesus"]
[Black "Garcia Sahuquillo, Marcos Antonio"]
[Result "1-0"]
[ECO "D02"]
[WhiteElo "1582"]
[BlackElo "1690"]
[Annotator "NA RC"]
[PlyCount "79"]
[EventDate "2024.08.27"]
[EventType "swiss"]
[EventCountry "ESP"]
[SourceTitle "playchess.com"]
[Source "ChessBase"]
[SourceQuality "1"]
[TimeControl "5400+30"]

1. d4 {[%emt 0:01:18]} d5 {[%emt 0:00:13]} 2. Nf3 {[%emt 0:01:30]} e6 {[%emt 0:00:23]} 3. e3 {[%emt 0:00:08]} c5 {[%emt 0:00:10]} 4. c3 {[%emt 0:00:15]} Nc6 {[%emt 0:00:07]} 5. Bd3 {[%emt 0:00:21]} Bd7 {[%emt 0:00:28]} 6. O-O {[%emt 0:00:18]} Qc7 {[%emt 0:00:56]} 7. Nbd2 {[%emt 0:01:15]} c4 {[%emt 0:00:11]} 8. Bc2 {[%emt 0:00:24]} b5 {[%emt 0:00:52]} 9. Qe2 {[%emt 0:00:15]} Nf6 {[%emt 0:00:21]} 10. e4 {[%emt 0:00:18]} g6 {[%emt 0:06:24]} 11. e5 {[%emt 0:02:12]} Ng4 {[%emt 0:02:06]} 12. Ng5 {[%emt 0:02:34]} Nh6 {[%emt 0:04:13]} 13. Qf3 {[%emt 0:04:56]} Be7 {[%emt 0:00:11]} 14. Nb1 {[%emt 0:03:56]} Nf5 {[%emt 0:06:36]} 15. g4 {[%emt 0:45:57]} h6 {[%emt 0:00:08]} 16. gxf5 {[%emt 0:06:00]} hxg5 {[%emt 0:00:44]} 17. fxg6 {[%emt 0:02:14]} fxg6 {[%emt 0:07:43]} 18. Bxg6+ {[%emt 0:00:02]} Kd8 {[%emt 0:00:09]} 19. Qg3 {[%emt 0:04:08]} Rg8 {[%emt 0:00:38]} 20. Bh5 {[%emt 0:02:48]} Kc8 {[%emt 0:01:36]} 21. Be3 {[%emt 0:04:51]} Kb7 {[%emt 0:01:54]} 22. Nd2 {[%emt 0:01:57]} Raf8 {[%emt 0:06:25]} 23. Bg4 {[%emt 0:02:04]} Qd8 {[%emt 0:01:28]} 24. b3 {[%emt 0:04:40]} Rg6 {[%emt 0:00:55]} 25. bxc4 {[%emt 0:00:46]} dxc4 {[%emt 0:00:10]} 26. a4 {[%emt 0:02:15]} a6 {[%emt 0:01:45]} 27. axb5 {[%emt 0:01:12]} axb5 {[%emt 0:00:02]} 28. Rfb1 {[%emt 0:00:21]} Na7 {[%emt 0:00:44]} 29. Qg2+ {[%emt 0:02:44]} Bc6 {[%emt 0:00:23]} 30. Rxa7+ {[%emt 0:01:16]} Kxa7 {[%emt 0:02:25]} 31. Qxc6 {[%emt 0:00:14]} Qa5 {[%emt 0:00:07]} 32. d5+ {[%emt 0:00:17]} Kb8 {[%emt 0:00:39]} 33. Rxb5+ {[%emt 0:01:28]} Qxb5 {[%emt 0:00:08]} 34. Qxb5+ {[%emt 0:00:05]} Kc8 {[%emt 0:00:23]} 35. Qc6+ {[%emt 0:00:10]} Kb8 {[%emt 0:00:23]} 36. Qb6+ {[%emt 0:00:59]} Kc8 {[%emt 0:00:12]} 37. Bxe6+ {[%emt 0:00:02]} Rxe6 {[%emt 0:00:16]} 38. Qxe6+ {[%emt 0:00:04]} Kd8 {[%emt 0:00:19]} 39. Bb6+ {[%emt 0:00:02]} Ke8 {[%emt 0:00:11]} 40. d6 {[%emt 0:00:32]} 1-0

[Event "ESP-ch U1700 2024"]
[Site "Albacete"]
[Date "2024.08.29"]
[Round "4.9"]
[White "Tobarra Salmeron, Jesus"]
[Black "Zubizarreta Landera, Maddi"]
[Result "0-1"]
[ECO "A40"]
[WhiteElo "1603"]
[BlackElo "1699"]
[Annotator "NA RC"]
[PlyCount "144"]
[EventDate "2024.08.27"]
[EventType "swiss"]
[EventCountry "ESP"]
[SourceTitle "playchess.com"]
[Source "ChessBase"]
[SourceQuality "1"]
[TimeControl "5400+30"]

1. d4 {[%emt 0:00:03]} Nc6 {[%emt 0:05:34]} 2. Nf3 {[%emt 0:00:55]} e6 {[%emt 0:00:37]} 3. c4 {[%emt 0:00:54]} Bb4+ {[%emt 0:00:43]} 4. Bd2 {[%emt 0:00:30]} Bxd2+ {[%emt 0:00:41]} 5. Qxd2 {[%emt 0:00:13]} Nf6 {[%emt 0:00:56]} 6. Nc3 {[%emt 0:00:22]} d6 {[%emt 0:00:55]} 7. e4 {[%emt 0:01:11]} O-O {[%emt 0:03:33]} 8. Bd3 {[%emt 0:02:57]} e5 {[%emt 0:03:15]} 9. Bc2 {[%emt 0:02:18]} Bg4 {[%emt 0:04:08]} 10. d5 {[%emt 0:03:09]} Ne7 {[%emt 0:02:47]} 11. Nh4 {[%emt 0:00:47]} Qc8 {[%emt 0:08:34]} 12. O-O {[%emt 0:07:35]} Nh5 {[%emt 0:09:54]} 13. Qg5 {[%emt 0:01:34]} f6 14. Qe3 {[%emt 0:00:54]} Nf4 {[%emt 0:08:47]} 15. Bd1 {[%emt 0:01:09]} Bxd1 {[%emt 0:04:54]} 16. Raxd1 {[%emt 0:00:13]} f5 {[%emt 0:01:53]} 17. f3 {[%emt 0:02:35]} Rf6 {[%emt 0:01:10]} 18. Ne2 {[%emt 0:03:13]} Nxe2+ {[%emt 0:03:38]} 19. Qxe2 {[%emt 0:00:06]} f4 {[%emt 0:00:43]} 20. Qf2 {[%emt 0:02:30]} g5 {[%emt 0:01:54]} 21. Nf5 {[%emt 0:00:54]} Nxf5 {[%emt 0:00:12]} 22. exf5 {[%emt 0:00:05]} Qxf5 {[%emt 0:00:12]} 23. g4 {[%emt 0:00:50]} fxg3 {[%emt 0:01:16]} 24. Qxg3 {[%emt 0:00:15]} Kh8 {[%emt 0:02:06]} 25. Kh1 {[%emt 0:01:10]} Raf8 {[%emt 0:00:36]} 26. Rg1 {[%emt 0:02:13]} Qxf3+ {[%emt 0:02:20]} 27. Qxf3 {[%emt 0:00:45]} Rxf3 {[%emt 0:00:08]} 28. Rxg5 {[%emt 0:00:07]} Rf1+ {[%emt 0:02:15]} 29. Rxf1 {[%emt 0:00:09]} Rxf1+ {[%emt 0:00:05]} 30. Kg2 {[%emt 0:01:06]} Rb1 {[%emt 0:01:02]} 31. b3 {[%emt 0:00:12]} Rb2+ {[%emt 0:02:26]} 32. Kf3 {[%emt 0:00:58]} h6 {[%emt 0:02:12]} 33. Rh5 {[%emt 0:00:53]} Kg7 {[%emt 0:00:46]} 34. Ke4 {[%emt 0:02:25]} Rf2 {[%emt 0:06:38]} 35. Rh4 {[%emt 0:01:17]} Rf6 {[%emt 0:04:07]} 36. Rg4+ {[%emt 0:00:49]} Rg6 {[%emt 0:02:08]} 37. Rh4 {[%emt 0:02:02]} Kf6 {[%emt 0:01:47]} 38. Rh5 {[%emt 0:01:15]} Rg4+ {[%emt 0:00:24]} 39. Kf3 {[%emt 0:00:10]} Rf4+ {[%emt 0:00:07]} 40. Ke3 {[%emt 0:00:30]} Kg6 {[%emt 0:00:59]} 41. Rh3 {[%emt 0:00:24]} h5 {[%emt 0:00:59]} 42. Rg3+ {[%emt 0:00:39]} Rg4 {[%emt 0:02:02]} 43. Rf3 {[%emt 0:01:01]} Kg7 {[%emt 0:02:27]} 44. h3 {[%emt 0:01:03]} Rg6 {[%emt 0:01:39]} 45. Ke4 {[%emt 0:00:19]} h4 {[%emt 0:03:03]} 46. Ke3 {[%emt 0:03:06]} Rf6 {[%emt 0:02:06]} 47. Rxf6 {[%emt 0:00:31]} Kxf6 {[%emt 0:00:06]} 48. Ke4 {[%emt 0:00:06]} a5 {[%emt 0:01:27]} 49. a3 {[%emt 0:01:36]} b6 {[%emt 0:01:16]} 50. b4 {[%emt 0:00:52]} axb4 {[%emt 0:00:06]} 51. axb4 {[%emt 0:00:05]} Kg5 {[%emt 0:00:14]} 52. b5 {[%emt 0:01:53]} Kf6 {[%emt 0:00:12]} 53. Ke3 {[%emt 0:00:07]} Kf5 {[%emt 0:00:22]} 54. Kf3 {[%emt 0:00:17]} e4+ {[%emt 0:00:01]} 55. Ke3 {[%emt 0:00:11]} Ke5 {[%emt 0:00:05]} 56. Ke2 {[%emt 0:00:48]} Kd4 {[%emt 0:00:40]} 57. Kd2 {[%emt 0:00:24]} Kxc4 {[%emt 0:00:26]} 58. Ke3 {[%emt 0:00:28]} Kxd5 {[%emt 0:00:09]} 59. Ke2 {[%emt 0:00:19]} Kd4 {[%emt 0:00:17]} 60. Kd2 {[%emt 0:00:18]} e3+ {[%emt 0:00:07]} 61. Ke2 {[%emt 0:00:41]} Ke4 {[%emt 0:00:03]} 62. Ke1 {[%emt 0:00:21]} Kf3 {[%emt 0:00:17]} 63. Kf1 {[%emt 0:00:37]} e2+ {[%emt 0:00:05]} 64. Ke1 {[%emt 0:00:23]} d5 {[%emt 0:00:03]} 65. Kd2 {[%emt 0:00:20]} Kf2 {[%emt 0:00:06]} 66. Kd3 {[%emt 0:00:26]} e1=Q {[%emt 0:00:10]} 67. Kd4 {[%emt 0:00:12]} Qe4+ {[%emt 0:00:11]} 68. Kc3 {[%emt 0:00:29]} Ke3 {[%emt 0:00:06]} 69. Kb3 {[%emt 0:00:17]} Kd2 {[%emt 0:00:22]} 70. Kb2 {[%emt 0:00:29]} Qb4+ {[%emt 0:00:09]} 71. Ka1 {[%emt 0:00:10]} Kc2 {[%emt 0:00:08]} 72. Ka2 {[%emt 0:00:02]} Qb2# {[%emt 0:00:06]} 0-1

[Event "ESP-ch U1700 2024"]
[Site "Albacete"]
[Date "2024.08.29"]
[Round "5.1"]
[White "Garcia-Munoz Arias, Diego"]
[Black "Perez Fernandez, Alvaro"]
[Result "1-0"]
[ECO "A45"]
[WhiteElo "1696"]
[BlackElo "1638"]
[Annotator "NA RC"]
[PlyCount "41"]
[EventDate "2024.08.27"]
[EventType "swiss"]
[EventCountry "ESP"]
[SourceTitle "playchess.com"]
[Source "ChessBase"]
[SourceQuality "1"]
[TimeControl "5400+30"]

1. d4 Nf6 2. Bf4 d6 3. Nc3 Nbd7 4. Nf3 g6 5. e4 Bg7 6. Qd2 O-O 7. O-O-O c5 8. Bh6 cxd4 9. Nxd4 a6 10. h4 Bxh6 11. Qxh6 Ng4 12. Qd2 h5 13. f3 Nge5 14. g4 hxg4 15. h5 Nf6 16. hxg6 Nxg6 17. Qh6 Qa5 18. Nd5 Re8 19. Bc4 Nxd5 20. Bxd5 e6 21. Nf5 1-0

[Event "ESP-ch U1700 2024"]
[Site "Albacete"]
[Date "2024.08.29"]
[Round "5.2"]
[White "Jimenez Fernandez, Alejandro"]
[Black "Varela Cano, Hugo"]
[Result "1-0"]
[ECO "A04"]
[WhiteElo "1956"]
[BlackElo "1691"]
[Annotator "RC"]
[PlyCount "132"]
[EventDate "2024.08.27"]
[EventType "swiss"]
[EventCountry "ESP"]
[SourceTitle "playchess.com"]
[Source "ChessBase"]
[SourceQuality "1"]
[TimeControl "5400+30"]

1. Nf3 {[%emt 0:00:03]} d6 {[%emt 0:00:19]} 2. d4 {[%emt 0:00:13]} g6 {[%emt 0:00:58]} 3. c4 {[%emt 0:01:00]} Bg7 {[%emt 0:02:04]} 4. Nc3 {[%emt 0:01:34]} Nd7 {[%emt 0:04:29]} 5. e3 {[%emt 0:03:40]} e5 {[%emt 0:01:55]} 6. Be2 {[%emt 0:11:11]} Ne7 {[%emt 0:07:04]} 7. dxe5 {[%emt 0:10:57]} dxe5 {[%emt 0:02:55]} 8. Qc2 {[%emt 0:02:03]} c6 {[%emt 0:10:48]} 9. O-O {[%emt 0:02:36]} f5 {[%emt 0:04:57]} 10. e4 {[%emt 0:06:42]} f4 {[%emt 0:04:17]} 11. b3 {[%emt 0:03:37]} h6 {[%emt 0:08:45]} 12. g3 {[%emt 0:09:48]} g5 {[%emt 0:05:49]} 13. Ba3 {[%emt 0:02:41]} Bf6 {[%emt 0:17:56]} 14. Ne1 {[%emt 0:06:19]} h5 {[%emt 0:04:01]} 15. g4 {[%emt 0:00:31]} hxg4 {[%emt 0:02:47]} 16. Bxg4 {[%emt 0:00:07]} Kf7 {[%emt 0:02:18]} 17. f3 {[%emt 0:07:20]} Nf8 {[%emt 0:03:42]} 18. h3 {[%emt 0:03:59]} Bxg4 19. hxg4 {[%emt 0:00:11]} Qd4+ {[%emt 0:03:20]} 20. Rf2 {[%emt 0:01:09]} Ne6 {[%emt 0:02:47]} 21. Rd1 {[%emt 0:11:15]} Qb6 {[%emt 0:00:46]} 22. Na4 {[%emt 0:00:43]} Qc7 {[%emt 0:00:39]} 23. Bd6 {[%emt 0:01:54]} Qc8 {[%emt 0:01:03]} 24. c5 {[%emt 0:00:44]} Nd4 {[%emt 0:02:29]} 25. Qc4+ {[%emt 0:01:38]} Kg6 {[%emt 0:01:05]} 26. Nc2 {[%emt 0:02:06]} Qf8 {[%emt 0:02:01]} 27. Qf1 {[%emt 0:02:48]} Rh4 {[%emt 0:01:35]} 28. Rdd2 {[%emt 0:04:42]} Nxc2 {[%emt 0:01:03]} 29. Rxc2 {[%emt 0:00:09]} Qh6 {[%emt 0:00:11]} 30. Rh2 {[%emt 0:02:20]} Rh8 {[%emt 0:00:09]} 31. Qg2 {[%emt 0:00:12]} Nc8 {[%emt 0:01:04]} 32. Nb2 {[%emt 0:01:01]} Kf7 {[%emt 0:00:59]} 33. a4 {[%emt 0:00:24]} Nxd6 {[%emt 0:00:16]} 34. cxd6 {[%emt 0:00:08]} Bd8 {[%emt 0:00:05]} 35. Nc4 {[%emt 0:01:15]} Ke6 {[%emt 0:01:17]} 36. Rxh4 {[%emt 0:00:48]} Qxh4 {[%emt 0:00:21]} 37. Kf1 {[%emt 0:00:37]} b5 {[%emt 0:00:56]} 38. axb5 {[%emt 0:00:07]} cxb5 {[%emt 0:00:08]} 39. Na3 {[%emt 0:00:10]} Ba5 {[%emt 0:00:37]} 40. Re2 {[%emt 0:00:44]} Qg3 {[%emt 0:01:29]} 41. Qxg3 {[%emt 0:00:16]} fxg3 {[%emt 0:00:10]} 42. Rg2 {[%emt 0:00:43]} Rh1+ {[%emt 0:00:46]} 43. Ke2 {[%emt 0:00:05]} Rh2 {[%emt 0:00:27]} 44. Kf1 {[%emt 0:00:31]} b4 {[%emt 0:00:48]} 45. Nc4 {[%emt 0:00:27]} Bb6 {[%emt 0:00:29]} 46. Nxb6 {[%emt 0:00:47]} axb6 {[%emt 0:00:33]} 47. d7 {[%emt 0:00:43]} Kxd7 {[%emt 0:00:19]} 48. Rxh2 {[%emt 0:00:07]} gxh2 {[%emt 0:00:08]} 49. Kg2 {[%emt 0:00:04]} Kd6 {[%emt 0:00:10]} 50. Kxh2 {[%emt 0:00:09]} Kc5 {[%emt 0:00:10]} 51. Kg2 {[%emt 0:00:07]} Kd4 {[%emt 0:00:53]} 52. Kf2 {[%emt 0:00:10]} Kd3 {[%emt 0:01:32]} 53. f4 {[%emt 0:00:59]} Kxe4 {[%emt 0:00:30]} 54. fxg5 {[%emt 0:00:29]} Kd5 {[%emt 0:00:29]} 55. Ke3 {[%emt 0:00:19]} e4 {[%emt 0:00:16]} 56. g6 {[%emt 0:00:08]} Ke6 {[%emt 0:00:12]} 57. g7 {[%emt 0:00:07]} Kf7 {[%emt 0:00:09]} 58. Kxe4 {[%emt 0:00:19]} Kxg7 {[%emt 0:00:08]} 59. Kd5 {[%emt 0:00:00]} Kg6 {[%emt 0:00:00]} 60. Kc6 {[%emt 0:00:00]} Kg5 {[%emt 0:00:00]} 61. Kxb6 {[%emt 0:00:00]} Kxg4 {[%emt 0:00:00]} 62. Kc5 {[%emt 0:00:07]} Kf5 {[%emt 0:00:02]} 63. Kxb4 {[%emt 0:00:07]} Ke6 {[%emt 0:00:24]} 64. Kc5 {[%emt 0:00:23]} Kd7 {[%emt 0:00:11]} 65. Kb6 {[%emt 0:00:56]} Kd6 66. b4 {[%emt 0:00:14]} Kd5 1-0

[Event "ESP-ch U1700 2024"]
[Site "Albacete"]
[Date "2024.08.29"]
[Round "5.3"]
[White "Carrilero Otalora, Vanesa"]
[Black "El Ammari Rovira, Yassin Jesus"]
[Result "0-1"]
[ECO "D02"]
[WhiteElo "1692"]
[BlackElo "1582"]
[Annotator "NA RC"]
[PlyCount "92"]
[EventDate "2024.08.27"]
[EventType "swiss"]
[EventCountry "ESP"]
[SourceTitle "playchess.com"]
[Source "ChessBase"]
[SourceQuality "1"]
[TimeControl "5400+30"]

1. d4 {[%emt 0:00:05]} d5 {[%emt 0:00:59]} 2. Nf3 {[%emt 0:00:34]} c5 {[%emt 0:01:08]} 3. e3 {[%emt 0:01:27]} Nc6 {[%emt 0:01:28]} 4. c3 {[%emt 0:01:46]} cxd4 {[%emt 0:02:05]} 5. cxd4 {[%emt 0:06:45]} Bf5 {[%emt 0:01:15]} 6. Nc3 {[%emt 0:02:42]} e6 {[%emt 0:01:56]} 7. a3 {[%emt 0:04:03]} Bd6 {[%emt 0:01:24]} 8. Bd3 {[%emt 0:05:16]} Bxd3 {[%emt 0:01:45]} 9. Qxd3 {[%emt 0:00:11]} Nf6 {[%emt 0:00:31]} 10. O-O {[%emt 0:01:07]} O-O {[%emt 0:04:52]} 11. b4 {[%emt 0:08:18]} e5 {[%emt 0:10:39]} 12. Qb5 e4 {[%emt 0:05:53]} 13. Nd2 {[%emt 0:18:18]} Qb6 {[%emt 0:46:35]} 14. Qxb6 {[%emt 0:01:41]} axb6 {[%emt 0:00:01]} 15. Bb2 {[%emt 0:00:54]} Rfc8 {[%emt 0:01:02]} 16. Nb5 {[%emt 0:01:36]} Bf8 {[%emt 0:04:22]} 17. f3 {[%emt 0:04:40]} Na7 {[%emt 0:09:47]} 18. Nc3 {[%emt 0:05:57]} Re8 {[%emt 0:02:14]} 19. fxe4 {[%emt 0:01:14]} Nxe4 {[%emt 0:00:51]} 20. Ndxe4 {[%emt 0:00:34]} dxe4 {[%emt 0:00:28]} 21. Nd5 {[%emt 0:03:52]} Rac8 {[%emt 0:01:00]} 22. Nxb6 {[%emt 0:00:50]} Rc2 {[%emt 0:00:30]} 23. Rf2 {[%emt 0:00:49]} Rc6 {[%emt 0:00:38]} 24. Na4 {[%emt 0:02:30]} Nb5 {[%emt 0:00:13]} 25. Nc5 {[%emt 0:02:52]} b6 {[%emt 0:00:39]} 26. Nb3 {[%emt 0:01:52]} Nd6 {[%emt 0:00:33]} 27. Nd2 {[%emt 0:05:35]} Rec8 {[%emt 0:00:35]} 28. Nf1 {[%emt 0:05:09]} g6 {[%emt 0:00:18]} 29. Ng3 {[%emt 0:01:00]} Bh6 {[%emt 0:00:03]} 30. Re2 {[%emt 0:03:08]} Rc2 {[%emt 0:00:58]} 31. Kf2 {[%emt 0:02:49]} f5 {[%emt 0:00:43]} 32. a4 {[%emt 0:02:01]} Rxe2+ {[%emt 0:00:22]} 33. Nxe2 {[%emt 0:00:42]} Bxe3+ {[%emt 0:00:08]} 34. Kxe3 {[%emt 0:01:41]} Nc4+ {[%emt 0:00:03]} 35. Kf4 {[%emt 0:02:21]} Nxb2 {[%emt 0:00:07]} 36. a5 {[%emt 0:02:41]} bxa5 {[%emt 0:01:07]} 37. bxa5 {[%emt 0:00:08]} Nd3+ {[%emt 0:00:14]} 38. Ke3 {[%emt 0:00:23]} Ra8 {[%emt 0:00:21]} 39. a6 {[%emt 0:00:17]} Nb4 {[%emt 0:00:31]} 40. Ra2 {[%emt 0:01:33]} Nxa2 {[%emt 0:00:19]} 41. d5 {[%emt 0:00:19]} Rxa6 {[%emt 0:01:21]} 42. Kd4 {[%emt 0:00:08]} Ra3 {[%emt 0:00:35]} 43. Ke5 {[%emt 0:00:17]} Kf7 {[%emt 0:00:40]} 44. Kd6 {[%emt 0:00:34]} Rd3 {[%emt 0:00:21]} 45. Nf4 {[%emt 0:00:30]} Rd2 {[%emt 0:00:26]} 46. Kd7 {[%emt 0:00:22]} g5 {[%emt 0:00:26]} 0-1

[Event "ESP-ch U1700 2024"]
[Site "Albacete"]
[Date "2024.08.29"]
[Round "5.4"]
[White "Airos Martorell, Ignacio"]
[Black "Saiz Alonso de Armino, Daniel"]
[Result "0-1"]
[ECO "D02"]
[WhiteElo "1650"]
[BlackElo "1689"]
[Annotator "NA RC"]
[PlyCount "58"]
[EventDate "2024.08.27"]
[EventType "swiss"]
[EventCountry "ESP"]
[SourceTitle "playchess.com"]
[Source "ChessBase"]
[SourceQuality "1"]
[TimeControl "5400+30"]

1. d4 {[%emt 0:00:00]} d5 {[%emt 0:00:11]} 2. Nf3 {[%emt 0:00:16]} e6 {[%emt 0:00:09]} 3. Bf4 {[%emt 0:01:09]} Nf6 {[%emt 0:01:39]} 4. e3 {[%emt 0:00:37]} c5 {[%emt 0:00:36]} 5. c3 {[%emt 0:01:04]} Bd6 {[%emt 0:00:29]} 6. Bg3 Qc7 7. Bd3 {[%emt 0:01:50]} Nbd7 {[%emt 0:01:11]} 8. Nbd2 {[%emt 0:02:10]} O-O {[%emt 0:00:46]} 9. O-O {[%emt 0:00:32]} e5 {[%emt 0:00:36]} 10. dxe5 {[%emt 0:00:54]} Nxe5 {[%emt 0:01:58]} 11. Nxe5 {[%emt 0:03:13]} Bxe5 {[%emt 0:00:21]} 12. Bxe5 {[%emt 0:01:31]} Qxe5 {[%emt 0:00:18]} 13. Nf3 {[%emt 0:00:02]} Qe7 {[%emt 0:00:36]} 14. Qa4 {[%emt 0:02:02]} b6 {[%emt 0:03:40]} 15. Qh4 {[%emt 0:02:38]} h6 {[%emt 0:03:36]} 16. Rfe1 {[%emt 0:04:43]} Re8 {[%emt 0:00:57]} 17. Qg3 Bb7 {[%emt 0:00:57]} 18. Nh4 {[%emt 0:02:46]} Ne4 {[%emt 0:05:48]} 19. Bxe4 {[%emt 0:06:31]} Qxe4 {[%emt 0:00:20]} 20. f3 {[%emt 0:00:38]} Qe5 {[%emt 0:01:24]} 21. Qxe5 {[%emt 0:01:41]} Rxe5 {[%emt 0:00:19]} 22. g3 {[%emt 0:00:34]} Rae8 {[%emt 0:00:56]} 23. Ng2 {[%emt 0:00:09]} g5 {[%emt 0:02:11]} 24. g4 {[%emt 0:05:00]} R5e7 {[%emt 0:01:23]} 25. a4 {[%emt 0:00:43]} d4 {[%emt 0:05:14]} 26. exd4 {[%emt 0:04:12]} Bxf3 {[%emt 0:00:45]} 27. dxc5 {[%emt 0:00:22]} bxc5 {[%emt 0:00:38]} 28. h3 {[%emt 0:00:36]} Bxg2 {[%emt 0:00:13]} 29. Kxg2 {[%emt 0:00:43]} Rxe1 {[%emt 0:00:06]} 0-1

[Event "ESP-ch U1700 2024"]
[Site "Albacete"]
[Date "2024.08.29"]
[Round "5.5"]
[White "Solanilla Olcese, Ada"]
[Black "Lopez Milian, Adela"]
[Result "0-1"]
[ECO "C02"]
[WhiteElo "1668"]
[BlackElo "1681"]
[Annotator "NA RC"]
[PlyCount "82"]
[EventDate "2024.08.27"]
[EventType "swiss"]
[EventCountry "ESP"]
[SourceTitle "playchess.com"]
[Source "ChessBase"]
[SourceQuality "1"]
[TimeControl "5400+30"]

1. e4 {[%emt 0:00:01]} e6 {[%emt 0:00:06]} 2. d4 {[%emt 0:00:14]} d5 {[%emt 0:00:05]} 3. e5 {[%emt 0:00:19]} c5 {[%emt 0:00:11]} 4. c3 {[%emt 0:00:12]} Nc6 {[%emt 0:00:05]} 5. Nf3 {[%emt 0:00:28]} a6 {[%emt 0:00:30]} 6. a3 {[%emt 0:02:23]} c4 {[%emt 0:02:02]} 7. Be2 {[%emt 0:02:18]} b5 {[%emt 0:00:33]} 8. O-O {[%emt 0:01:14]} a5 {[%emt 0:04:45]} 9. Nbd2 {[%emt 0:03:50]} Bd7 {[%emt 0:07:47]} 10. Qc2 {[%emt 0:09:52]} Nge7 {[%emt 0:15:40]} 11. Rd1 {[%emt 0:06:44]} Ng6 {[%emt 0:02:43]} 12. Nf1 {[%emt 0:01:48]} f6 {[%emt 0:04:41]} 13. exf6 {[%emt 0:03:30]} gxf6 {[%emt 0:00:22]} 14. Ng3 {[%emt 0:01:59]} a4 {[%emt 0:10:20]} 15. Re1 {[%emt 0:02:39]} Qc7 {[%emt 0:06:30]} 16. Nd2 {[%emt 0:07:49]} O-O-O {[%emt 0:04:20]} 17. Ndf1 {[%emt 0:06:16]} Rg8 {[%emt 0:04:25]} 18. Nh5 {[%emt 0:05:51]} Be7 {[%emt 0:02:49]} 19. Be3 {[%emt 0:06:20]} e5 {[%emt 0:04:06]} 20. dxe5 {[%emt 0:03:28]} fxe5 {[%emt 0:00:20]} 21. Rad1 {[%emt 0:01:34]} Be6 {[%emt 0:01:28]} 22. Bf3 {[%emt 0:10:59]} Nh4 {[%emt 0:03:20]} 23. Nhg3 {[%emt 0:04:45]} Nxf3+ {[%emt 0:03:18]} 24. gxf3 {[%emt 0:00:12]} Rg6 {[%emt 0:01:37]} 25. Kh1 {[%emt 0:01:40]} d4 {[%emt 0:01:04]} 26. cxd4 {[%emt 0:02:52]} exd4 {[%emt 0:00:08]} 27. Bc1 {[%emt 0:00:45]} d3 {[%emt 0:01:01]} 28. Qd2 {[%emt 0:00:46]} Nd4 {[%emt 0:03:05]} 29. Qf4 {[%emt 0:03:33]} Qxf4 {[%emt 0:03:21]} 30. Bxf4 {[%emt 0:00:08]} Nxf3 {[%emt 0:00:32]} 31. Re3 {[%emt 0:01:26]} Nd4 {[%emt 0:01:44]} 32. Nd2 {[%emt 0:02:28]} Bd5+ {[%emt 0:01:31]} 33. f3 {[%emt 0:01:16]} Bf6 {[%emt 0:02:26]} 34. Nde4 {[%emt 0:00:40]} Nc2 {[%emt 0:01:17]} 35. Nd6+ {[%emt 0:00:40]} Rxd6 {[%emt 0:01:37]} 36. Bxd6 {[%emt 0:00:42]} Nxe3 {[%emt 0:00:07]} 37. Re1 {[%emt 0:00:42]} Bxf3+ {[%emt 0:00:14]} 38. Kg1 {[%emt 0:00:28]} d2 {[%emt 0:00:35]} 39. Rd1 {[%emt 0:01:30]} Nxd1 {[%emt 0:00:25]} 40. Bb4 {[%emt 0:00:24]} Bd4+ {[%emt 0:00:21]} 41. Kf1 {[%emt 0:00:13]} Ne3+ {[%emt 0:00:05]} 0-1

[Event "ESP-ch U1700 2024"]
[Site "Albacete"]
[Date "2024.08.29"]
[Round "5.6"]
[White "Cerdeno Gil, Izan"]
[Black "Zubizarreta Landera, Maddi"]
[Result "1-0"]
[ECO "A50"]
[WhiteElo "1637"]
[BlackElo "1699"]
[Annotator "NA RC"]
[PlyCount "75"]
[EventDate "2024.08.27"]
[EventType "swiss"]
[EventCountry "ESP"]
[SourceTitle "playchess.com"]
[Source "ChessBase"]
[SourceQuality "1"]
[TimeControl "5400+30"]

1. d4 {[%emt 0:00:03]} Nf6 {[%emt 0:00:04]} 2. c4 {[%emt 0:00:09]} Nc6 {[%emt 0:00:04]} 3. Nf3 {[%emt 0:00:16]} e6 {[%emt 0:00:10]} 4. e3 {[%emt 0:00:14]} Bb4+ {[%emt 0:00:06]} 5. Nbd2 {[%emt 0:00:10]} O-O {[%emt 0:00:28]} 6. a3 {[%emt 0:00:32]} Bxd2+ {[%emt 0:01:33]} 7. Bxd2 {[%emt 0:00:15]} a5 {[%emt 0:00:39]} 8. b4 {[%emt 0:01:27]} axb4 {[%emt 0:00:45]} 9. axb4 {[%emt 0:00:09]} Rxa1 {[%emt 0:00:03]} 10. Qxa1 {[%emt 0:00:13]} d6 {[%emt 0:02:33]} 11. Be2 {[%emt 0:02:57]} Ne4 {[%emt 0:01:37]} 12. Bd3 {[%emt 0:06:32]} Nxd2 {[%emt 0:01:02]} 13. Nxd2 {[%emt 0:00:34]} Nxb4 {[%emt 0:11:48]} 14. Bxh7+ {[%emt 0:00:15]} Kxh7 {[%emt 0:00:28]} 15. Qb1+ {[%emt 0:00:08]} Kg8 {[%emt 0:00:15]} 16. Qxb4 {[%emt 0:00:09]} Qg5 {[%emt 0:01:35]} 17. g3 {[%emt 0:03:15]} e5 {[%emt 0:01:20]} 18. h4 {[%emt 0:07:16]} Qh5 {[%emt 0:01:59]} 19. Qc3 {[%emt 0:05:51]} exd4 {[%emt 0:06:45]} 20. Qxd4 {[%emt 0:00:13]} Re8 {[%emt 0:02:17]} 21. f3 {[%emt 0:11:32]} Bd7 {[%emt 0:06:47]} 22. Kf2 {[%emt 0:04:36]} Bc6 {[%emt 0:03:26]} 23. g4 {[%emt 0:01:30]} Qe5 {[%emt 0:09:47]} 24. Qxe5 {[%emt 0:03:41]} Rxe5 {[%emt 0:00:55]} 25. Ra1 {[%emt 0:00:10]} Kf8 {[%emt 0:01:42]} 26. Nb3 {[%emt 0:03:54]} Re8 {[%emt 0:03:30]} 27. e4 {[%emt 0:04:46]} b5 {[%emt 0:03:36]} 28. Nd4 {[%emt 0:01:01]} Bd7 {[%emt 0:02:59]} 29. Nxb5 {[%emt 0:01:21]} Bxb5 {[%emt 0:01:55]} 30. cxb5 {[%emt 0:00:10]} Rb8 {[%emt 0:00:08]} 31. Ra7 {[%emt 0:00:17]} Rc8 {[%emt 0:00:40]} 32. Ke3 {[%emt 0:00:24]} Ke8 {[%emt 0:00:08]} 33. Kd4 {[%emt 0:00:20]} f6 {[%emt 0:01:05]} 34. Kd5 {[%emt 0:00:47]} Kd8 {[%emt 0:00:28]} 35. b6 {[%emt 0:02:10]} c5 {[%emt 0:00:39]} 36. b7 {[%emt 0:00:37]} Rb8 {[%emt 0:00:07]} 37. Kxd6 {[%emt 0:00:14]} c4 {[%emt 0:00:19]} 38. Ra8 {[%emt 0:00:12]} 1-0